bitfinex/quotes_ETHUSD_20250930
["timestamp","ask_amount","ask_price","bid_price","bid_amount"]
[1759252241494,0.6672,4111.1,4110.8,0.002]
[1759252241671,0.2325,4111.0,4110.9,1.7]
[1759252243812,0.6672,4111.0,4110.9,2.807]
[1759252244917,0.2325,4111.0,4110.9,2.807]
[1759252245116,0.001,4111.2,4110.9,2.807]
[1759252245424,0.2325,4111.1,4110.9,2.807]
[1759252245634,0.69153579,4111.0,4110.8,0.002]
[1759252245794,2.43255734,4110.9,4110.8,0.002]
[1759252245995,2.43255734,4110.9,4110.8,0.564]
[1759252246194,3.09975734,4110.9,4110.8,0.564]
[1759252246800,3.09975734,4110.9,4110.8,0.002]
[1759252248343,0.2325,4111.1,4110.8,2.809]
[1759252248726,0.02533579,4111.2,4110.8,0.002]
[1759252248727,0.69153579,4111.0,4110.8,0.002]
[1759252249034,2.43255734,4110.9,4110.8,0.002]
[1759252249235,0.6672,4110.9,4110.8,0.002]
[1759252249929,0.69153579,4110.9,4110.8,0.002]
[1759252250097,3.12409313,4110.9,4110.8,0.002]
[1759252250297,0.69153579,4110.9,4110.8,0.002]
[1759252250494,0.25683579,4110.9,4110.8,0.002]
[1759252250998,0.2325,4110.9,4110.8,0.002]
[1759252251334,0.25683579,4110.9,4110.8,0.002]
[1759252252025,3.12409313,4110.9,4110.8,0.002]
[1759252254639,0.25683579,4110.9,4110.8,0.002]
[1759252254839,7.02,4111.0,4110.8,0.3681]
[1759252255022,7.02,4111.0,4110.8,0.8182]
[1759252255429,7.02,4111.0,4110.8,0.1236]
[1759252255629,7.2525,4111.0,4110.8,0.1236]
[1759252256806,3.12409313,4110.9,4110.8,0.002]
[1759252258243,10.14409313,4110.9,4110.8,0.002]
[1759252258543,10.11975734,4110.9,4110.8,0.002]
[1759252259641,7.02,4110.9,4110.8,0.002]
[1759252260249,9.45255734,4110.9,4110.8,0.002]
[1759252260642,7.02,4110.9,4110.8,0.002]
[1759252260819,9.45255734,4110.9,4110.8,0.002]
[1759252261020,9.68505734,4110.9,4110.8,0.002]
[1759252261650,7.02,4110.9,4110.8,0.002]
[1759252261853,9.68505734,4110.9,4110.8,0.002]
[1759252262220,12.64135734,4110.9,4110.8,0.002]
[1759252263953,13.43335734,4110.9,4110.8,0.002]
[1759252264254,12.99865734,4110.9,4110.8,0.002]
[1759252264442,13.43335734,4110.9,4110.8,0.002]
[1759252264622,11.97415734,4110.9,4110.8,0.002]
[1759252266155,12.20665734,4110.9,4110.8,0.002]
[1759252267749,7.1416,4110.9,4110.8,0.002]
[1759252268060,7.02,4110.9,4110.8,0.6966]
[1759252268564,9.45255734,4110.9,4110.8,0.2465]
[1759252268764,9.45255734,4110.9,4110.8,0.002]
[1759252269061,7.02,4110.9,4110.8,0.002]
[1759252269261,7.02,4110.9,4110.8,0.6966]
[1759252269643,2.4,4111.1,4110.8,0.6966]
[1759252269959,2.4568553,4111.0,4110.8,0.6966]
[1759252270158,0.25683579,4111.0,4110.8,0.002]
[1759252270362,2.43255734,4110.9,4110.8,0.002]
[1759252270755,2.45685765,4111.0,4110.8,0.002]
[1759252270951,2.43255734,4110.9,4110.8,0.002]
[1759252271141,2.66025734,4110.9,4110.8,0.002]
[1759252271942,2.43255734,4110.9,4110.8,0.002]
[1759252273352,6.06325734,4110.9,4110.8,0.002]
[1759252278294,6.06325734,4110.9,4110.3,0.002]
[1759252278295,5.62503082,4110.1,4109.9,0.002]
[1759252278448,8.43203082,4110.1,4109.9,0.002]
[1759252278645,5.62509002,4110.0,4109.9,1e-08]
[1759252278882,6.14750213,4110.0,4109.9,1e-08]
[1759252279173,6.94208226,4110.0,4109.9,1e-08]
[1759252279557,6.94208226,4110.0,4108.7,0.002]
[1759252279558,5.62580062,4108.8,4108.7,0.002]
[1759252279879,8.43280062,4108.8,4108.7,0.002]
[1759252280096,9.63151273,4108.8,4108.7,0.002]
[1759252280382,9.63151273,4108.8,4107.0,0.002]
[1759252280383,5.62585985,4108.7,4107.0,0.002]
[1759252280679,2.43480801,4107.1,4107.0,0.002]
[1759252280884,2.43468833,4107.4,4107.0,0.002]
[1759252281176,0.02433579,4107.3,4107.0,0.67]
[1759252281374,0.02433579,4107.3,4107.1,0.2346]
[1759252281578,2.43480801,4107.1,4107.0,0.002]
[1759252281774,2.43476331,4107.2,4107.0,0.002]
[1759252281947,0.02433579,4107.1,4107.0,0.002]
[1759252282144,2.4591438,4107.1,4107.0,0.002]
[1759252282567,0.02433579,4107.1,4107.0,0.002]
[1759252282767,0.02433579,4107.5,4107.0,0.67]
[1759252283078,0.02433579,4107.5,4107.1,0.668]
[1759252283467,0.6763,4108.2,4107.0,0.002]
[1759252283468,0.02433579,4107.7,4107.2,3.10274555]
[1759252283800,2.4,4108.5,4107.6,2.43446544]
[1759252283801,2.43397882,4108.5,4107.6,2.43446544]
[1759252283993,0.02433579,4108.4,4107.6,2.43446544]
[1759252284174,0.02433579,4108.4,4107.7,0.668]
[1759252284500,2.43409941,4108.3,4107.7,0.668]
[1759252284702,0.02433579,4108.2,4107.8,0.2346]
[1759252285017,2.43418246,4108.2,4107.9,0.2346]
[1759252285216,0.02433579,4108.1,4107.6,0.2346]
[1759252285367,0.02433579,4108.1,4107.5,2.808]
[1759252285570,0.02433579,4108.1,4107.5,3.0426]
[1759252285975,0.02433579,4108.7,4107.6,0.69234511]
[1759252286170,0.02433579,4108.7,4107.7,0.668]
[1759252286370,2.45820011,4108.7,4107.7,0.668]
[1759252286591,0.02433579,4108.7,4107.8,0.668]
[1759252286779,0.02433579,4109.0,4107.9,0.668]
[1759252287005,0.02433579,4109.0,4108.1,2.43421533]
[1759252287176,0.02433579,4109.0,4108.0,0.668]
[1759252287370,0.02433579,4109.0,4107.5,0.64646479]
[1759252287371,0.6763,4108.9,4107.7,0.4334]
[1759252287594,2.43414754,4108.3,4107.7,0.4334]
[1759252287778,2.43422538,4108.1,4107.8,0.2346]
[1759252287991,2.45862009,4108.0,4107.3,2.808]
[1759252288191,2.45862009,4108.0,4107.3,0.668]
[1759252288395,0.02433579,4108.0,4107.5,0.1216]
[1759252288581,0.02433579,4108.0,4107.6,0.668]
[1759252288781,2.45865402,4108.0,4107.7,0.2346]
[1759252288987,2.45865402,4108.0,4107.5,0.1216]
[1759252289309,0.2362,4107.9,4107.1,3.0426]
[1759252289509,0.14593579,4107.8,4107.2,0.1216]
[1759252289934,0.1216,4107.8,4107.3,0.668]
[1759252290131,2.43425672,4108.1,4107.6,0.1216]
[1759252290311,0.02433579,4108.0,4107.6,0.3562]
[1759252290513,0.02433579,4108.0,4107.6,0.1216]
[1759252290712,0.02433579,4108.0,4107.7,0.668]
[1759252290928,7.04433579,4108.0,4107.7,0.668]
[1759252291131,7.2562,4108.0,4107.6,0.1216]
[1759252291427,2.43443453,4107.8,4107.2,3.476]
[1759252291738,0.2362,4107.9,4107.3,0.1216]
[1759252291739,0.02433579,4107.7,4107.3,0.1216]
[1759252291914,2.43451163,4107.6,4107.3,0.1216]
[1759252292233,2.45892929,4107.5,4107.3,0.1216]
[1759252292735,2.43463017,4107.4,4107.0,2.9316]
[1759252292908,2.70497772,4107.3,4107.0,2.81]
[1759252293114,2.45908112,4107.3,4107.0,2.81]
[1759252293434,2.43475525,4107.2,4107.0,2.81]
[1759252293659,0.14593579,4107.4,4107.1,0.668]
[1759252293830,0.02433579,4107.3,4107.1,0.668]
[1759252294223,2.43480801,4107.1,4107.0,0.002]
[1759252296837,0.02433579,4107.8,4107.3,0.2346]
[1759252297225,2.45874282,4107.8,4107.4,0.668]
[1759252297437,2.45874282,4107.8,4107.1,2.43479846]
[1759252297639,0.02433579,4107.8,4107.5,0.2346]
[1759252297839,2.43449892,4107.7,4107.1,0.2346]
[1759252298152,2.43463148,4107.4,4107.0,2.81]
[1759252298336,0.02433579,4107.3,4107.0,0.002]
[1759252298541,2.4346761,4107.4,4107.0,0.002]
[1759252298737,0.02433579,4107.3,4107.0,0.002]
[1759252298942,0.02433579,4107.5,4107.0,0.002]
[1759252299643,2.43471306,4107.3,4107.0,0.002]
[1759252299844,0.02433579,4107.2,4107.0,0.002]
[1759252300148,0.26053579,4107.2,4107.0,0.002]
[1759252300353,2.43480801,4107.1,4107.0,0.002]
[1759252300528,0.02433579,4107.2,4107.0,0.002]
[1759252300850,0.02433579,4107.3,4107.0,0.002]
[1759252301020,2.45902617,4107.3,4107.0,0.002]
[1759252302057,7.02,4108.0,4107.1,0.9857]
[1759252302221,2.42433579,4107.9,4107.5,2.43455312]
[1759252302422,2.4,4108.6,4107.6,3.5137]
[1759252302632,2.43404368,4108.4,4107.6,3.5137]
[1759252302855,2.45943728,4108.3,4107.6,5.94821107]
[1759252303054,0.02533579,4108.3,4107.7,2.43445169]
[1759252303271,0.02533579,4108.3,4107.8,2.43434038]
[1759252303467,0.02533579,4108.3,4107.6,5.94820981]
[1759252303637,0.02533579,4108.3,4107.7,2.43441133]
[1759252303948,0.001,4108.3,4107.7,2.43441133]
[1759252304149,0.02433579,4108.2,4107.8,2.43438508]
[1759252304456,0.001,4108.3,4108.2,2.43415607]
[1759252304632,0.001,4108.3,4108.2,5.24315607]
[1759252304963,0.001,4108.3,4108.2,5.94785607]
[1759252305536,0.001,4108.3,4108.2,3.5137]
[1759252306036,0.001,4108.3,4108.2,5.94785607]
[1759252312276,0.001,4108.3,4108.2,6.78606799]
[1759252314392,0.001,4108.3,4108.2,6.90766799]
[1759252316596,0.001,4108.3,4108.2,4.09866799]
[1759252316899,0.001,4108.3,4108.2,5.36375607]
[1759252317393,0.001,4108.3,4108.2,6.06845607]
[1759252317899,0.001,4108.3,4108.2,2.9296]
[1759252318068,0.001,4108.3,4108.2,5.36375607]
[1759252318985,0.001,4108.3,4108.2,2.9296]
[1759252319191,0.001,4108.3,4108.2,5.36375607]
[1759252320284,0.001,4108.3,4108.2,5.59785607]
[1759252320903,0.001,4108.3,4108.2,2.78985607]
[1759252321106,0.001,4108.3,4108.2,5.36375607]
[1759252321290,0.001,4108.3,4108.2,5.90013168]
[1759252321690,0.001,4108.3,4108.2,3.70007561]
[1759252321895,0.001,4108.3,4108.2,5.36375607]
[1759252322107,0.001,4108.3,4108.2,2.9296]
[1759252322307,0.001,4108.3,4108.2,5.36375607]
[1759252322810,0.001,4108.3,4108.2,0.1216]
[1759252322983,0.25,4108.3,4108.2,2.9286]
[1759252323590,0.25,4108.3,4108.2,0.1216]
[1759252323796,0.25,4108.3,4108.2,1.7636]
[1759252324813,0.001,4108.3,4108.2,1.7636]
[1759252325016,0.001,4108.3,4108.2,5.22497912]
[1759252325330,0.001,4108.3,4108.2,5.20063756]
[1759252329338,0.001,4108.3,4108.0,0.2341]
[1759252329493,0.001,4108.3,4108.1,2.807]
[1759252329694,0.25,4108.3,4108.1,5.24319879]
[1759252330011,0.25,4108.3,4108.2,2.807]
[1759252331191,0.001,4108.3,4108.2,5.24115607]
[1759252331397,0.001,4108.3,4108.2,2.807]
[1759252332739,0.001,4108.3,4108.2,5.24115607]
[1759252332911,0.001,4108.3,4108.2,5.92455607]
[1759252333500,0.001,4108.3,4108.2,5.24115607]
[1759252334232,0.001,4108.3,4108.2,5.48185607]
[1759252334531,0.001,4108.3,4108.2,5.24115607]
[1759252335135,0.001,4108.3,4108.2,5.36275607]
[1759252336237,0.001,4108.3,4108.2,6.85012475]
[1759252337002,0.001,4108.3,4108.2,9.25012475]
[1759252337907,0.001,4108.3,4108.2,10.04212475]
[1759252342542,0.001,4108.3,4108.2,5.75972475]
[1759252342748,0.001,4108.3,4108.2,2.55575607]
[1759252342936,0.6666,4108.3,4108.2,5.36175607]
[1759252343453,0.001,4108.3,4108.2,5.36175607]
[1759252344534,0.001,4108.3,4108.2,6.06045607]
[1759252345661,0.001,4108.3,4108.2,5.36175607]
[1759252346224,0.001,4108.3,4108.2,6.14155475]
[1759252348030,0.236,4108.3,4108.2,6.14155475]
[1759252350168,0.001,4108.3,4108.2,6.14155475]
[1759252350561,0.001,4108.3,4108.2,6.84025475]
[1759252350871,0.001,4108.3,4108.2,6.14155475]
[1759252351075,0.001,4108.3,4108.2,3.33555475]
[1759252353358,0.001,4108.3,4108.2,5.36175607]
[1759252353689,0.236,4108.3,4108.2,5.36175607]
[1759252353894,0.236,4108.3,4108.2,2.55575607]
[1759252354075,0.6666,4108.3,4108.2,5.36175607]
[1759252354276,0.236,4108.3,4108.2,5.36175607]
[1759252354682,0.001,4108.3,4108.2,5.36175607]
[1759252357470,0.236,4108.3,4108.2,2.9276]
[1759252357677,0.236,4108.3,4108.2,5.36175607]
[1759252357876,0.236,4108.3,4108.2,0.1216]
[1759252358090,0.236,4108.3,4108.2,5.36175607]
[1759252358690,0.001,4108.3,4108.2,5.36175607]
[1759252359697,0.236,4108.3,4108.2,5.36175607]
[1759252360002,0.236,4108.3,4108.2,2.9276]
[1759252360298,0.6666,4108.3,4108.2,2.9276]
[1759252360461,0.6666,4108.3,4108.1,0.002]
[1759252360659,2.45849186,4108.2,4108.1,0.002]
[1759252361096,3.16249186,4108.2,4108.1,0.002]
[1759252362695,0.72833579,4108.2,4108.1,0.002]
[1759252362891,0.704,4108.2,4108.1,0.002]
[1759252363866,3.13815607,4108.2,4108.1,0.002]
[1759252364267,0.704,4108.2,4108.1,0.002]
[1759252365097,0.704,4108.2,4108.1,2.808]
[1759252365492,0.001,4108.3,4108.2,2.43415607]
[1759252365676,0.001,4108.3,4108.2,3.46425816]
[1759252366023,0.001,4108.3,4108.2,3.22565816]
[1759252369714,0.001,4108.3,4108.2,3.46425816]
[1759252370502,0.001,4108.3,4108.2,3.58585816]
[1759252370879,0.001,4108.3,4108.2,3.34725816]
[1759252372413,0.001,4108.3,4108.2,3.37159972]
[1759252372778,0.001,4108.3,4108.2,3.58585816]
[1759252374513,0.001,4108.3,4108.2,3.34725816]
[1759252374709,0.001,4108.3,4108.2,3.58585816]
[1759252374912,0.001,4108.3,4108.2,4.01415816]
[1759252375286,0.001,4108.3,4108.2,3.58585816]
[1759252375482,0.001,4108.3,4108.2,4.01415816]
[1759252376217,0.001,4108.3,4108.2,3.34725816]
[1759252376911,0.001,4108.3,4108.2,3.77555816]
[1759252377094,0.001,4108.3,4108.2,3.58585816]
[1759252377956,0.001,4108.3,4108.2,3.61019972]
[1759252378599,0.001,4108.3,4108.2,4.03849972]
[1759252380632,0.001,4108.3,4108.2,4.01415816]
[1759252380835,0.001,4108.3,4108.2,0.1216]
[1759252381130,0.705,4108.3,4108.2,2.9266]
[1759252382341,0.72933579,4108.3,4108.2,2.805]
[1759252382542,3.13909682,4108.3,4108.2,2.805]
[1759252383104,0.705,4108.3,4108.2,2.805]
[1759252384026,0.248,4108.3,4108.2,2.805]
[1759252384240,0.248,4108.3,4108.2,2.82934156]
[1759252384241,0.001,4108.3,4108.2,2.82934156]
[1759252384567,0.248,4108.3,4108.2,2.805]
[1759252385717,0.248,4108.3,4108.2,5.23915607]
[1759252386117,0.001,4108.3,4108.2,5.23915607]
[1759252386647,0.001,4108.3,4108.2,2.805]
[1759252386861,0.248,4108.3,4108.2,5.23915607]
[1759252387037,0.001,4108.3,4108.2,5.23915607]
[1759252387521,0.001,4108.3,4108.2,2.805]
[1759252387923,0.001,4108.3,4108.2,5.23915607]
[1759252390255,0.001,4108.3,4108.2,6.72858474]
[1759252392557,0.001,4108.3,4108.2,6.06168474]
[1759252393663,0.001,4108.3,4108.2,6.76918474]
[1759252397236,0.001,4108.3,4108.2,6.06168474]
[1759252397633,0.001,4108.3,4108.2,6.73108474]
[1759252398544,0.001,4108.3,4108.2,6.72908474]
[1759252398948,0.001,4108.3,4108.2,6.05968474]
[1759252399154,0.001,4108.3,4108.2,3.25668474]
[1759252399358,0.001,4108.3,4108.2,6.72908474]
[1759252400245,0.001,4108.3,4108.2,6.28658474]
[1759252401363,0.001,4108.3,4108.2,6.72908474]
[1759252403777,0.001,4108.3,4108.2,6.85068474]
[1759252404068,0.001,4108.3,4108.2,3.70265359]
[1759252404271,0.001,4108.3,4108.2,6.18128474]
[1759252404668,0.2445,4108.3,4108.2,6.18128474]
[1759252407755,0.001,4108.3,4108.2,6.18128474]
[1759252408459,0.001,4108.3,4108.2,6.62378474]
[1759252408663,0.001,4108.3,4108.2,6.85068474]
[1759252408877,0.001,4108.3,4108.2,9.25068474]
[1759252409046,0.001,4108.3,4108.2,10.28618474]
[1759252415186,0.001,4108.3,4108.2,9.61578474]
[1759252415513,0.001,4108.3,4108.2,10.28518474]
[1759252417512,0.001,4108.3,4108.2,6.02178474]
[1759252417739,0.001,4108.3,4108.2,8.82278474]
[1759252418307,0.001,4108.3,4108.2,9.49218474]
[1759252418912,0.001,4108.3,4108.2,10.28418474]
[1759252424601,0.001,4108.3,4108.2,10.29528474]
[1759252424942,0.001,4108.3,4108.2,3.62178474]
[1759252424943,0.2279,4108.3,4108.2,3.62178474]
[1759252425275,0.6579,4108.3,4108.2,5.23515607]
[1759252425434,0.2279,4108.3,4108.2,5.23515607]
[1759252425815,0.6579,4108.3,4108.2,5.23515607]
[1759252426195,0.001,4108.3,4108.2,5.23515607]
[1759252426440,0.001,4108.3,4108.2,5.60129474]
[1759252426654,0.6579,4108.3,4108.2,8.40229474]
[1759252428647,0.6579,4108.3,4108.2,2.43415607]
[1759252429020,0.6579,4108.3,4108.2,5.23415607]
[1759252430847,0.6579,4108.3,4108.2,2.8]
[1759252431361,0.6579,4108.3,4108.2,5.23415607]
[1759252431561,0.6579,4108.3,4108.2,2.8]
[1759252431862,0.6579,4108.3,4108.2,5.23415607]
[1759252432156,0.6579,4108.3,4108.2,2.8]
[1759252432560,0.6579,4108.3,4108.1,2.43620584]
[1759252432561,0.6579,4108.3,4108.1,0.002]
[1759252432864,2.45849186,4108.2,4108.1,0.002]
[1759252433254,5.51539186,4108.2,4108.1,0.002]
[1759252433454,3.22633384,4107.9,4107.8,7.0]
[1759252433629,12.82956075,4107.9,4107.8,7.0]
[1759252433830,12.80522496,4107.9,4107.8,7.0]
[1759252435029,12.92682496,4107.9,4107.8,7.0]
[1759252435742,13.04960146,4107.9,4107.8,7.0]
[1759252436352,12.92682496,4107.9,4107.8,7.0]
[1759252437031,12.13482496,4107.9,4107.8,7.0]
[1759252439948,4.8343931,4107.8,4107.7,0.002]
[1759252440562,3.0569,4107.8,4107.7,0.002]
[1759252440750,3.08123579,4107.8,4107.7,0.002]
[1759252440951,0.2269,4107.8,4107.7,0.002]
[1759252441272,0.3485,4108.0,4107.7,0.002]
[1759252441472,2.42433579,4107.9,4107.8,2.801]
[1759252441677,2.88866963,4107.9,4107.8,2.801]
[1759252441880,2.4343931,4107.8,4107.7,0.002]
[1759252442181,0.2269,4107.8,4107.7,0.002]
[1759252442470,0.6569,4107.8,4107.7,0.002]
[1759252444048,3.0912931,4107.8,4107.7,0.002]
[1759252444245,6.29541496,4107.8,4107.7,0.002]
[1759252445081,8.72980806,4107.8,4107.7,0.002]
[1759252445267,6.29541496,4107.8,4107.7,0.002]
[1759252445459,8.72980806,4107.8,4107.7,0.002]
[1759252446076,6.29541496,4107.8,4107.7,0.002]
[1759252446278,8.72980806,4107.8,4107.7,0.002]
[1759252446654,11.12980806,4107.8,4107.7,0.002]
[1759252448362,18.14980806,4107.8,4107.7,0.002]
[1759252450153,8.46851496,4107.8,4107.7,0.002]
[1759252450351,5.63851496,4108.2,4107.7,2.803]
[1759252450566,5.63851496,4107.9,4107.7,2.803]
[1759252450759,0.02433579,4107.8,4107.7,2.803]
[1759252450988,5.55112889,4107.8,4107.7,0.002]
[1759252451285,5.5267931,4107.8,4107.7,0.002]
[1759252452192,11.16530806,4107.8,4107.7,0.002]
[1759252452576,11.95730806,4107.8,4107.7,0.002]
[1759252453994,2.43445236,4107.7,4107.6,0.002]
[1759252454293,5.62663017,4107.4,4107.3,0.002]
[1759252454492,14.06614513,4107.4,4107.3,0.002]
[1759252454679,14.75854513,4107.4,4107.3,0.002]
[1759252458375,15.27850654,4107.4,4107.3,0.002]
[1759252458586,14.75854513,4107.4,4107.3,0.002]
[1759252459402,15.27871556,4107.4,4107.3,0.002]
[1759252460103,5.62668945,4107.3,4107.2,1e-08]
[1759252460395,6.26870593,4107.3,4107.2,1e-08]
[1759252460564,6.94740593,4107.3,4107.2,1e-08]
[1759252461468,3.192,4107.1,4106.8,0.002]
[1759252461706,11.38704154,4106.9,4106.8,0.002]
[1759252461868,14.70845802,4106.9,4106.8,0.002]
[1759252462175,15.38715802,4106.9,4106.8,0.002]
[1759252464604,5.72141648,4106.9,4106.8,0.002]
[1759252464905,5.72141648,4106.9,4106.8,0.6884]
[1759252464906,8.16011496,4106.9,4106.8,0.6884]
[1759252465203,10.59504154,4106.9,4106.8,0.6884]
[1759252465702,8.16011496,4106.9,4106.8,0.6884]
[1759252465886,2.43473792,4107.3,4106.8,0.6884]
[1759252466086,0.1216,4107.1,4106.9,0.6864]
[1759252466280,0.02433579,4107.0,4106.8,0.002]
[1759252466471,0.02433579,4107.0,4106.9,0.6864]
[1759252466902,5.66285075,4107.0,4106.9,0.6864]
[1759252467103,5.63851496,4107.0,4106.9,0.6864]
[1759252470775,0.1216,4107.1,4106.9,0.6864]
[1759252470975,0.02433579,4107.0,4106.8,0.002]
[1759252471707,0.02433579,4107.0,4106.9,0.6864]
[1759252472211,0.1216,4107.1,4106.9,3.12132452]
[1759252472414,1.2264,4108.0,4106.9,3.12132452]
[1759252472415,5.63851496,4108.5,4107.0,3.51074867]
[1759252472590,0.14593579,4108.4,4107.9,2.43430356]
[1759252473109,5.63951496,4108.6,4108.0,3.14501732]
[1759252473312,0.02433579,4108.5,4108.0,3.12067458]
[1759252473918,0.001,4108.6,4108.0,3.99268134]
[1759252475623,0.001,4108.6,4108.0,3.9683386]
[1759252479510,0.001,4108.6,4108.0,3.99268134]
[1759252480211,0.001,4108.6,4108.0,3.9683386]
[1759252482817,0.001,4108.6,4108.0,3.99268134]
[1759252482994,0.001,4108.6,4108.0,4.09015732]
[1759252483928,0.001,4108.6,4108.0,4.18741458]
[1759252485628,0.001,4108.6,4108.0,7.37941458]
[1759252488302,0.001,4108.8,4108.7,5.62585985]
[1759252488501,0.001,4108.8,4108.7,8.42385985]
[1759252488831,0.001,4108.8,4108.7,9.13475985]
[1759252489526,0.001,4108.8,4108.7,9.23220947]
[1759252489717,0.001,4108.8,4108.7,6.43420947]
[1759252489900,0.001,4108.8,4108.7,5.81812825]
[1759252490107,0.001,4108.8,4108.7,8.51867863]
[1759252490722,0.001,4108.8,4108.7,9.22957863]
[1759252495834,0.001,4108.8,4108.7,9.32703917]
[1759252497737,0.001,4108.8,4108.7,10.11903917]
[1759252497926,0.001,4108.8,4108.7,10.11803917]
[1759252498326,0.001,4108.8,4108.7,10.23963917]
[1759252499238,0.001,4108.8,4108.7,17.23963917]
[1759252499840,0.001,4108.8,4108.7,17.11803917]
[1759252500231,0.001,4108.8,4108.7,14.08193917]
[1759252500463,0.001,4108.8,4108.7,16.40713917]
[1759252501173,0.001,4108.8,4108.7,16.64623917]
[1759252501673,0.001,4111.7,4109.7,0.792]
[1759252501839,0.001,4111.7,4110.0,0.792]
[1759252502040,0.2321,4111.3,4110.3,0.792]
[1759252502344,0.2331,4111.2,4110.3,0.792]
[1759252502559,0.6789,4111.1,4111.0,2.43249817]
[1759252502854,0.6789,4111.1,4111.0,2.806]
[1759252503455,0.6789,4111.1,4110.3,0.48262548]
[1759252503767,5.6309707,4110.8,4110.4,2.807]
[1759252503964,2.432439,4111.1,4111.0,1.1369293]
[1759252504261,4.832439,4111.1,4111.0,0.2321]
[1759252504459,5.279239,4111.1,4111.0,0.2321]
[1759252504661,2.8468,4111.1,4111.0,0.2321]
[1759252504861,3.13158,4111.1,4111.0,0.2321]
[1759252505061,3.13158,4111.1,4111.0,0.4808]
[1759252505260,5.564019,4111.1,4111.0,0.4808]
[1759252505972,5.796119,4111.1,4111.0,0.4808]
[1759252506180,5.797119,4111.1,4111.0,7.0]
[1759252508079,3.36468,4111.1,4111.0,7.0]
[1759252508878,5.797119,4111.1,4111.0,7.0]
[1759252511790,0.6674,4110.6,4110.5,2.807]
[1759252512283,0.6674,4110.6,4110.4,0.1216]
[1759252512465,0.28478,4110.7,4110.5,2.807]
[1759252512666,0.6674,4110.6,4110.5,2.807]
[1759252513061,0.1216,4111.0,4110.5,2.807]
[1759252513294,3.12429628,4110.9,4110.5,2.807]
[1759252513511,0.4334,4110.8,4110.5,2.807]
[1759252513794,0.4334,4110.8,4110.4,0.1216]
[1759252513961,0.4334,4110.8,4110.6,2.806]
[1759252514163,0.25833579,4110.9,4110.6,2.806]
[1759252514365,3.12431271,4110.9,4110.6,2.806]
[1759252514679,2.86601652,4110.8,4110.6,2.806]
[1759252514886,0.69173579,4110.7,4110.4,0.1216]
[1759252515058,0.69173579,4110.7,4110.5,2.806]
[1759252515258,0.1216,4111.0,4110.5,2.806]
[1759252515468,0.6674,4110.9,4110.5,2.806]
[1759252515667,2.55410761,4111.0,4110.5,2.806]
[1759252515872,0.789,4111.0,4110.5,2.806]
[1759252516294,3.22151067,4111.0,4110.5,2.806]
[1759252516596,0.45773579,4110.9,4110.5,2.806]
[1759252516794,3.39805316,4110.8,4110.5,2.806]
[1759252516999,0.02433579,4110.7,4110.5,2.806]
[1759252517398,0.14593579,4111.0,4110.5,2.806]
[1759252517600,0.59063579,4111.0,4110.5,2.806]
[1759252517814,3.27013583,4111.0,4110.5,2.806]
[1759252517976,0.83763579,4111.0,4110.5,2.806]
[1759252518304,0.14593579,4111.0,4110.5,2.806]
[1759252518802,2.43267764,4110.7,4110.5,2.806]
[1759252519004,2.43273488,4110.6,4110.4,0.1216]
[1759252519179,0.71603579,4110.5,4109.2,0.2284]
[1759252519376,2.43302952,4110.2,4110.0,0.1216]
[1759252519583,2.45736661,4110.1,4110.0,2.804]
[1759252519895,3.14906661,4110.1,4110.0,2.804]
[1759252520096,0.71603579,4110.1,4110.0,2.803]
[1759252520302,3.14906661,4110.1,4110.0,2.803]
[1759252521920,2.43309002,4110.0,4109.8,0.1216]
[1759252522219,2.43352487,4109.3,4109.2,2.803]
[1759252522933,3.12522487,4109.3,4109.2,2.803]
[1759252523302,2.43352487,4109.3,4109.2,2.803]
[1759252523606,0.02433579,4109.4,4109.2,2.803]
[1759252523988,0.6917,4109.9,4109.3,0.84503504]
[1759252523989,0.1216,4109.9,4109.3,0.84503504]
[1759252524185,0.1216,4109.9,4109.3,0.35]
[1759252524186,2.43329758,4109.7,4109.3,0.35]
[1759252524401,2.43328334,4109.7,4109.3,0.35]
[1759252525225,2.43335498,4109.6,4109.3,0.1216]
[1759252525622,0.71603579,4109.7,4109.4,0.4707]
[1759252525623,0.02433579,4109.7,4109.4,0.4707]
[1759252525919,2.4,4109.8,4109.4,0.2284]
[1759252526524,0.1216,4110.2,4109.6,0.1216]
[1759252526821,2.4326359,4110.8,4109.7,3.52743267]
[1759252526993,2.57947538,4111.0,4110.2,2.43296603]
[1759252527192,2.57947538,4111.0,4110.4,0.1216]
[1759252527593,0.14693579,4111.0,4110.4,2.5544266]
[1759252527809,0.14693579,4111.0,4110.5,2.43278873]
[1759252527995,0.14693579,4111.0,4110.4,2.57877941]
[1759252528191,0.14693579,4111.0,4110.4,0.1216]
[1759252528424,2.43255938,4110.9,4110.4,0.1216]
[1759252528629,2.57944217,4111.0,4110.4,0.35]
[1759252529393,0.14693579,4111.0,4110.5,2.43274227]
[1759252529627,0.14693579,4111.0,4110.6,0.6991]
[1759252529806,0.14693579,4111.0,4110.7,2.804]
[1759252530145,0.1226,4111.0,4110.7,3.0324]
[1759252530441,0.02433579,4110.9,4110.7,2.804]
[1759252530667,0.02433579,4110.9,4110.4,0.1216]
[1759252530831,0.02433579,4110.9,4110.2,2.803]
[1759252530832,2.43286437,4110.4,4110.2,2.803]
[1759252531035,3.14894822,4110.3,4110.2,2.803]
[1759252531232,2.43308752,4110.1,4109.9,2.804]